Cogmind - Beta 16 @@@ ROGUE MODE // 2026.01.02 @ 15:46:52 Player: artema Result: Destroyed by G-47 Trooper with Particle Gun Performance ------------- Evolutions (3) 1500 Regions Visited (5) 1000 Robots Destroyed (24) 120 Value Destroyed (805) 805 Prototype IDs (2) 40 Alien Tech Used (0) 0 Bonus (204) 204 TOTAL SCORE: 3669 Bonus ------- Follower Combat Kills 204 Cogmind --------- Core Integrity 0/700 Matter 250/300 Energy 160/160 System Corruption 6% Temperature Cool (9) Movement Core (150) Ox2 Location -7/Factory Parts ------- > --- POWER (1) -------- Light Nuclear Core > --- PROPULSION (4) --- (None) > --- UTILITY (5) ------ Improved Heat Sink > --- WEAPON (3) ------- Autogun > --- INVENTORY (5) ---- Carbon-fiber Leg Carbon-fiber Leg Improved Carbon-fiber Leg Coolant Injector Transmission Jammer Peak State ------------ > --- POWER ------------ Light Ion Engine > --- PROPULSION ------- Aluminum Leg Aluminum Leg Aluminum Leg Aluminum Leg > --- UTILITY ---------- Small Storage Unit Experimental Sensor Array Targeting Computer Core Shielding Thief Drone Bay > --- WEAPON ----------- Particle Gun Gatling Laser Heavy Ion Cannon > --- INVENTORY -------- Light Ion Engine Aluminum Leg Carbon-fiber Leg Carbon-fiber Leg Improved Carbon-fiber Leg Sensor Array Transmission Jammer Improved Light Armor Plating [Rating: 36] Favorites ----------- Power Light Ion Engine Engine Light Ion Engine Power Core Light Nuclear Core Propulsion Aluminum Leg Leg Aluminum Leg Flight Unit VTOL Module Utility Small Storage Unit Device Thief Drone Bay Storage Small Storage Unit Processor Targeting Computer Protection Core Shielding Weapon Medium Laser Energy Gun Medium Laser Energy Cannon Heavy Ion Cannon Ballistic Gun Autogun Build | -11 -10 -9 -9 -8 -7 ------- Run | Yrd Mat Mat Min Mat Fac Slots Evolved 6 | . . 2 . 2 2 Power . | . . . . . . Propulsion 2 | . . 1 . . 1 Utility 3 | . . 1 . 2 . Weapon 1 | . . . . . 1 Parts Attached 32 | 6 4 2 1 6 13 Power 4 | 1 1 1 . . 1 Engine 3 | 1 1 1 . . . Core 1 | . . . . . 1 Reactor . | . . . . . . Propulsion 11 | 2 1 1 . 3 4 Treads . | . . . . . . Leg 10 | 2 1 1 . 3 3 Wheel . | . . . . . . Hover . | . . . . . . Flight 1 | . . . . . 1 Utility 8 | 1 2 . 1 2 2 Device 4 | . 1 . 1 1 1 Storage 1 | 1 . . . . . Processor 1 | . . . . 1 . Hackware . | . . . . . . Protection 2 | . 1 . . . 1 Artifact . | . . . . . . Weapon 9 | 2 . . . 1 6 Energy Gun 6 | 2 . . . . 4 Energy Cannon 2 | . . . . 1 1 Ballistic Gun 1 | . . . . . 1 Ballistic Cannon . | . . . . . . Launcher . | . . . . . . Special Weapon . | . . . . . . Impact Weapon . | . . . . . . Slashing Weapon . | . . . . . . Piercing Weapon . | . . . . . . Special Melee Weapon . | . . . . . . Unidentified Prototypes 2 | . . . 1 1 . Parts Lost 18 | . . 1 . . 17 Power 2 | . . 1 . . 1 Propulsion 5 | . . . . . 5 Utility 6 | . . . . . 6 Weapon 5 | . . . . . 5 Highest Loss Streak 16 | . . 1 . . 16 To Critical Strikes . | . . . . . . Average Backups 6 | 3 6 6 7 7 7 Power 1 | . 2 2 1 1 . Propulsion 2 | 1 2 2 2 1 2 Utility 1 | . . . 1 1 2 Weapon 1 | 1 1 2 1 2 1 Tool/Special . | . . . . . . Unused Backups 12 | . . . 1 2 9 Power 1 | . . . . . 1 Propulsion 5 | . . . . 2 3 Utility 2 | . . . . . 2 Weapon 3 | . . . 1 . 2 Tool/Special 1 | . . . . . 1 Average Slot Usage (%) 92 | . 92 93 100 99 86 Engine 9 | . 14 10 11 9 5 Leg 27 | . 28 28 33 27 24 Device 12 | . 6 11 11 18 13 Storage 9 | . 14 11 11 9 6 Processor 3 | . . . . 8 6 Protection 7 | . . 11 11 9 6 Energy Gun 17 | . 28 21 22 9 13 Energy Cannon 3 | . . . . 8 6 Peak Build Rating 36 | 6 7 9 16 28 36 Average Rating 20 | 4 6 8 15 26 30 On Entrance 11 | . 6 7 9 16 28 Avg Prop Armor Cover (%) . | . . . . . . Naked Turns 15 | . . . . . 15 Heaviest Build 29 | 11 12 13 16 19 29 Greatest Support 40 | 20 20 30 30 35 40 Greatest Overweight (x) 5 | . . . . . 5 Average Overweight (x) . | . . . . . . Largest Inventory Capacity 8 | 8 8 8 8 8 8 Average Capacity 7 | 7 8 8 8 8 7 Most Carried 8 | 5 8 7 8 8 8 Average Carried 6 | 3 6 6 7 7 7 Final Capacity 8 | 8 8 8 8 8 5 Final Carried 8 | 5 7 6 8 8 5 Class Distribution -------------------- 57% | Mutant 32% | Scavenger-Gunner 8% | Scavenger-Mutant Dominant Class ---------------- Mutant | -10/Materials Mutant | -9/Materials Mutant | -9/Mines Mutant | -8/Materials Scavenger-Gunner | -7/Factory Resources | -11 -10 -9 -9 -8 -7 ----------- Run | Yrd Mat Mat Min Mat Fac Matter Collected 498 | 176 94 . 82 60 86 Remotely . | . . . . . . Salvage Created 899 | 55 119 51 16 200 458 Parts 43 | 2 7 1 4 11 18 Haulers Intercepted . | . . . . . . Recyclers Shooed 2 | . . . 1 . 1 Parts Field Recycled . | . . . . . . Retrieved Matter . | . . . . . . Parts Self-Destructed . | . . . . . . Prevented . | . . . . . . Parts Restored . | . . . . . . Kills | -11 -10 -9 -9 -8 -7 ------- Run | Yrd Mat Mat Min Mat Fac Combat Hostiles Destroyed 22 | . 5 1 . 5 11 Melee 3 | . . . . . 3 Guns 15 | . 5 1 . 3 6 Cannons 4 | . . . . 2 2 Classes Destroyed 6 | 1 2 1 1 . 1 Tunneler 1 | . . . 1 . . Recycler 1 | 1 . . . . . Swarmer 8 | . 3 . . 2 3 Grunt 9 | . 2 . . 2 5 Sentry 3 | . . 1 . 1 1 Programmer 2 | . . . . . 2 Best Kill Streak 3 | 1 3 1 1 2 3 Combat Bots Only 3 | . 3 1 . 2 3 Max Kills in Single Turn 1 | 1 1 1 1 1 1 Gunslinging . | . . . . . . Exploded . | . . . . . . Melee 1 | . . . . . 1 Uniques/NPCs Destroyed . | . . . . . . Combat | -11 -10 -9 -9 -8 -7 -------- Run | Yrd Mat Mat Min Mat Fac Hostile Shots Fired 250 | . 35 10 . 3 202 Missed 79 | . 9 2 . 3 65 Hits 171 | . 26 8 . . 137 Projectile 171 | . 26 8 . . 137 Critical Strikes 6 | . 1 . . . 5 Actively Blocked 1 | . . . . . 1 Damage Taken 2500 | . 231 124 . . 2145 Core 775 | . 58 15 . . 702 Absorbed by Shields . | . . . . . . Redirected to Shielding 50 | . . 3 . . 47 Regen/Repaired (Parts) 27 | . . 27 . . . Core Remaining (%) 93 | 100 76 . 96 100 . Volleys Fired 72 | 3 15 4 3 13 34 Largest 3 | 2 2 2 2 2 3 Hottest 210 | 90 90 90 90 110 210 Shots Fired 138 | 6 30 8 6 26 62 Gun 110 | 6 30 8 6 13 47 Cannon 28 | . . . . 13 15 Launcher . | . . . . . . Special . | . . . . . . Kinetic 7 | . . . . . 7 Thermal 129 | 6 30 8 6 26 53 Explosive . | . . . . . . Electromagnetic 2 | . . . . . 2 Robot Hit Streak 10 | 3 4 10 4 5 6 Robot Miss Streak 8 | 2 6 . 2 8 4 Penetration Max . | . . . . . . Secondary Targets 1 | . 1 . . . . Max Gunslinging Chain 1 | . 1 . . . . Shots Hit Robots 75 | 4 11 7 4 9 40 Core Hits 50 | 2 7 2 2 6 31 Critical Kills . | . . . . . . Critical Parts Destroyed . | . . . . . . Critical Strikes 3 | . 2 . . 1 . Burn 3 | . 2 . . 1 . Melee Attacks . | . . . . . . Impact . | . . . . . . Slashing . | . . . . . . Piercing . | . . . . . . Sneak Attacks . | . . . . . . Combat Hostiles . | . . . . . . Follow-up Attacks . | . . . . . . Damage Inflicted 1341 | 44 128 82 48 141 898 Guns 944 | 44 128 82 48 88 554 Cannons 329 | . . . . 53 276 Explosions . | . . . . . . Melee . | . . . . . . Ramming 68 | . . . . . 68 Kinetic 72 | . . . . . 72 Thermal 1189 | 44 128 82 48 141 746 Explosive . | . . . . . . Electromagnetic 12 | . . . . . 12 Impact . | . . . . . . Slashing . | . . . . . . Piercing . | . . . . . . Highest Corruption 6 | . . 1 1 . 6 Average Corruption 1 | . . 1 1 . 1 Corruption Purged . | . . . . . . Corruption Blocked . | . . . . . . Effects 14 | . . 1 6 . 7 Message Errors 5 | . . 1 2 . 2 Matter Fused 1 | . . . . . 1 Heat Flow Errors 6 | . . . 3 . 3 Energy Discharges 1 | . . . . . 1 Data Loss (minor) 1 | . . . 1 . . Overload Shots . | . . . . . . Overflow Damage 1 | . . . . . 1 Projectiles 1 | . . . . . 1 Explosions . | . . . . . . Melee . | . . . . . . Knockbacks . | . . . . . . Impact . | . . . . . . Kinetic . | . . . . . . Secondary . | . . . . . . Self-Inflicted Damage 30 | . . . . . 30 Shots . | . . . . . . Rammed 19 | . . . . . 19 Targets Rammed 22 | . . . 1 . 21 Kicked 3 | . . . 1 . 2 Crushed . | . . . . . . Highest Temperature 358 | 90 234 63 295 187 358 Average Temperature 104 | 48 99 39 107 65 129 Received Heat Transfer 969 | . 36 36 . . 897 Effects 3 | . . . . . 3 Interference 2 | . . . . . 2 Short Circuit 1 | . . . . . 1 Siege Activations . | . . . . . . Martial Activations . | . . . . . . Shielding Activations . | . . . . . . Robots Disrupted . | . . . . . . Combat Hostiles . | . . . . . . Robots Corrupted . | . . . . . . Combat Hostiles . | . . . . . . Parts Fried . | . . . . . . Impact Corruptions . | . . . . . . Robots Melted . | . . . . . . Combat Hostiles . | . . . . . . Parts Melted 8 | . 1 3 . 1 3 Heat Transferred 2858 | 124 495 223 124 444 1448 Parts Sabotaged . | . . . . . . Parts Stolen . | . . . . . . Parts Stripped . | . . . . . . Power Chain Reactions . | . . . . . . Alert | -11 -10 -9 -9 -8 -7 ------- Run | Yrd Mat Mat Min Mat Fac Maximum Alert Level . | . . . . . . Low Security (%) 100 | 100 100 100 100 100 100 Level 1 . | . . . . . . Level 2 . | . . . . . . Level 3 . | . . . . . . Level 4 . | . . . . . . Level 5 . | . . . . . . High Security . | . . . . . . Max Security . | . . . . . . Peak Influence 164 | 5 75 30 6 164 81 Initial 70 | . . . 1 . 70 Average 22 | . 26 3 . 69 19 Influence Increases 871 | 5 134 52 6 332 342 Destroy 0b10 Robot/C 560 | . 100 20 . 220 220 Destroy 0b10 Robot/NC 10 | 5 . . 5 . . Destroy Leader 150 | . 10 10 . 70 60 Allied During Kill 28 | . . . 1 26 1 Successful Hack 16 | . 9 7 . . . Destroy Structure 2 | . . . . 1 1 Partial Spotted 15 | . . 15 . . . Lose Combat Pursuer 90 | . 15 . . 15 60 Influence Decreases 821 | 5 134 47 11 176 448 Entered New Map 90 | . . . 4 . 86 Time Decay 599 | 5 134 47 7 136 270 Lost Part 92 | . . . . . 92 Lost Ally 40 | . . . . 40 . Squads Dispatched 7 | . . . . 2 5 Investigation 2 | . . . . 1 1 Extermination 2 | . . . . . 2 Reinforcement 3 | . . . . 1 2 Assault . | . . . . . . Garrison . | . . . . . . Intercept . | . . . . . . Searches Triggered . | . . . . . . Construction Impeded . | . . . . . . Haulers Reinforced 1 | . . . . . 1 Active Scanning Responses . | . . . . . . Cargo Convoy Interrupts . | . . . . . . Stealth | -11 -10 -9 -9 -8 -7 --------- Run | Yrd Mat Mat Min Mat Fac Distress Signals 2 | . . . . 2 . Communications Jammed . | . . . . . . Distress Signals . | . . . . . . Times Spotted 47 | . 7 1 . 16 23 Peak Tracking Total 7 | . 3 2 . 3 7 Tactical Retreats 6 | . 1 . . 1 4 Traps | -11 -10 -9 -9 -8 -7 ------- Run | Yrd Mat Mat Min Mat Fac Traps Triggered 3 | . . 1 . . 2 Indirectly . | . . . . . . Trap Hack Attempts . | . . . . . . Triggered . | . . . . . . Disarmed 6 | . 6 . . . . Reprogrammed . | . . . . . . Reused . | . . . . . . Traps Extracted . | . . . . . . Installed . | . . . . . . Triggered . | . . . . . . Machines | -11 -10 -9 -9 -8 -7 ---------- Run | Yrd Mat Mat Min Mat Fac Machines Disabled . | . . . . . . Max in Single Turn . | . . . . . . Machines Repaired . | . . . . . . Machines Dismantled . | . . . . . . Machines Sabotaged . | . . . . . . Overloaded Fab Kills . | . . . . . . Hacking | -11 -10 -9 -9 -8 -7 --------- Run | Yrd Mat Mat Min Mat Fac Machines Accessed 10 | . 5 1 1 2 1 Terminals 5 | . 4 . . 1 . Fabricators . | . . . . . . Repair Stations 1 | . . 1 . . . Recycling Units 1 | . 1 . . . . Scanalyzers 2 | . . . . 1 1 Garrison Access . | . . . . . . Total Hacks 30 | . 12 9 1 7 1 Successful 18 | . 5 8 1 4 . Failed 12 | . 7 1 . 3 1 Catastrophic . | . . . . . . Database Lockouts . | . . . . . . Manual 1 | . 1 . . . . Terminals 12 | . 8 . . 4 . Fabricators . | . . . . . . Repair Stations 9 | . . 9 . . . Recycling Units 4 | . 4 . . . . Scanalyzers 4 | . . . . 3 1 Garrison Access . | . . . . . . Terminal Hacks 6 | . 3 . 1 2 . Open Door 1 | . . . 1 . . Alert Level 1 | . . . . 1 . Locate Traps 1 | . 1 . . . . Disarm Traps 1 | . 1 . . . . Dispatch Records 1 | . . . . 1 . Hauler Manifests 1 | . 1 . . . . Fabricator Hacks . | . . . . . . Repair Station Hacks 8 | . . 8 . . . Scan Component 4 | . . 4 . . . Repair 3 | . . 3 . . . Refit 1 | . . 1 . . . Recycling Unit Hacks 1 | . 1 . . . . Report Inventory 1 | . 1 . . . . Scanalyzer 2 | . . . . 2 . Retrieve Study 2 | . . . . 2 . Garrison Access Hacks . | . . . . . . Unauthorized Hacks . | . . . . . . Terminals . | . . . . . . Fabricators . | . . . . . . Repair Stations . | . . . . . . Recycling Units . | . . . . . . Scanalyzers . | . . . . . . Garrison Access . | . . . . . . Data Cores Recovered . | . . . . . . Used . | . . . . . . Hacking Detections 6 | . 3 . . 2 1 Full Trace Events 1 | . . . . 1 . Feedback Events . | . . . . . . Feedback Blocked . | . . . . . . Robot Schematics Acquired . | . . . . . . Robots Built . | . . . . . . Authchips . | . . . . . . Time . | . . . . . . Total Robot Build Rating . | . . . . . . Part Schematics Acquired . | . . . . . . Parts Built . | . . . . . . Authchips . | . . . . . . Time . | . . . . . . Total Part Build Rating . | . . . . . . Part Studies Acquired 2 | . . . . 2 . Parts Repaired 3 | . . 3 . . . Time 78 | . . 78 . . . Parts Recycled . | . . . . . . Recycled Matter . | . . . . . . Retrieved Matter . | . . . . . . Retrieved Components . | . . . . . . Parts Scanalyzed . | . . . . . . Part Schematics Acquired . | . . . . . . Parts Damaged . | . . . . . . Bothacking | -11 -10 -9 -9 -8 -7 ------------ Run | Yrd Mat Mat Min Mat Fac Used RIF Installer . | . . . . . . Robots Hacked . | . . . . . . Non-combat . | . . . . . . Combat . | . . . . . . Robot Hacks Applied . | . . . . . . Relay Couplers Released . | . . . . . . Fabnet Peak Effective % . | . . . . . . Robots Rewired . | . . . . . . Allies Hacked . | . . . . . . Hacks Repelled . | . . . . . . Allies | -11 -10 -9 -9 -8 -7 -------- Run | Yrd Mat Mat Min Mat Fac Total Allies 2 | . . . 2 . . Largest Group 2 | . . . 2 2 . Highest-Rated Group 54 | . . . 54 54 . Highest-Rated Ally 31 | . . . 31 31 . Total Orders . | . . . . . . Ally Attacks 87 | . . . . 72 15 Total Damage 686 | . . . . 596 90 Kills 6 | . . . . 6 . Allies Corrupted . | . . . . . . Allies Melted . | . . . . . . Intel | -11 -10 -9 -9 -8 -7 ------- Run | Yrd Mat Mat Min Mat Fac Active Infowar (turns) 1989 | . 204 380 22 436 947 Sensors 1989 | . 204 380 22 436 947 Robot Analysis Total . | . . . . . . Derelict Logs Recovered . | . . . . . . Drone Launches 16 | . . . 3 9 4 Drone Recoveries 16 | . . . . 11 5 Exploration | -11 -10 -9 -9 -8 -7 ------------- Run | Yrd Mat Mat Min Mat Fac Turns Passed 2829 | 77 411 380 420 436 1105 Spaces Moved 1943 | 50 292 299 337 325 640 Core 92 | 9 . . . . 83 Treads . | . . . . . . Legs 1842 | 41 292 299 337 325 548 Wheels . | . . . . . . Hover . | . . . . . . Flight 9 | . . . . . 9 Fastest Speed 50 | 50 120 120 120 110 50 Average Speed 115 | 107 120 120 120 117 107 Slowest Speed 300 | 120 120 120 120 120 300 Overloaded Moves . | . . . . . . Propulsion Burnouts . | . . . . . . Robots Hopped . | . . . . . . Potential Cave-ins . | . . . . . . Cave-ins Triggered . | . . . . . . Exploration Rate (%) 26 | 4 43 16 50 29 17 Regions Visited 5 Branch Regions 1 Pre-discovered Areas . | . . . . . . Known Exits Taken . | . . . . . . Unknown Exits Taken 5 | 1 1 1 1 1 . Scrap Searched 1 | . . . 1 . . Spaces Dug . | . . . . . . Terrain Destroyed 1 | . . . . . 1 Melee . | . . . . . . Projectile 1 | . . . . . 1 AOE . | . . . . . . Terrain Rammed . | . . . . . . Walls Destroyed . | . . . . . . Machines Disabled . | . . . . . . Actions | -11 -10 -9 -9 -8 -7 --------- Run | Yrd Mat Mat Min Mat Fac Total 2403 | 66 324 311 348 354 1000 Wait 282 | . 5 2 . . 275 Move 1938 | 49 291 298 336 324 640 Hop . | . . . . . . Pick Up 28 | 8 4 2 4 5 5 Fast Attach 16 | 3 1 2 . 3 7 Attach 19 | 3 3 3 1 2 7 Detach 5 | . 3 . 1 . 1 Swap 1 | . . . . 1 . Drop 20 | . 2 . 2 6 10 Fire 72 | 3 15 4 3 13 34 Melee . | . . . . . . Ram 19 | . . . . . 19 Kick 3 | . . . 1 . 2 Crush . | . . . . . . Escape Stasis . | . . . . . . Rewire . | . . . . . . Trap . | . . . . . . Miscellaneous . | . . . . . . Route ------- -11/Scrapyard -10/Materials (discovered 2 exits: *Mat / [*Min]) -9/Materials -9/Mines -8/Materials -7/Factory History --------- Turn | Location | Event 10 | -11/Scrapyard | Discovered new exit (range 16) 78 | -11/Scrapyard | Entered Materials 306 | -10/Materials | Build established: Mutant 451 | -10/Materials | Discovered new exit (range 5) 465 | -10/Materials | Discovered new exit (range 16) 489 | -10/Materials | Entered another Materials area 489 | -9/Materials | Evolved 2 slots: Propulsion x1, Utility x1 520 | -9/Materials | Repaired Med. Laser 525 | -9/Materials | Repaired Lgt. Ion Engine 551 | -9/Materials | Repaired Med. Laser 678 | -9/Materials | Discovered new exit (range 13) 869 | -9/Materials | Entered Mines 874 | -9/Mines | Found the Drone Emporium 881 | -9/Mines | Found Prototype Device 891 | -9/Mines | Identified Thief Drone Bay 1136 | -9/Mines | Found a damaged Exp. Sensor Array with a note attached 1138 | -9/Mines | Found Prototype Device 1178 | -9/Mines | Discovered new exit (range 11) 1235 | -9/Mines | Found DCF Scrap (14 items) 1289 | -9/Mines | Entered Materials 1289 | -8/Materials | Accompanied by 5 allies 1289 | -8/Materials | Evolved 2 slots: Utility x2 1289 | -8/Materials | Identified Exp. Sensor Array 1296 | -8/Materials | Led the pair of lost Derelicts to an unsafe place 1612 | -8/Materials | Discovered new exit (range 16) 1725 | -8/Materials | Entered Factory 1725 | -7/Factory | Accompanied by 1 ally 1725 | -7/Factory | Evolved 2 slots: Propulsion x1, Weapon x1 2042 | -7/Factory | Build established: Scavenger-Gunner 2709 | -7/Factory | Core integrity fell below 50% 2733 | -7/Factory | Core integrity fell below 20% 2776 | -7/Factory | Lost 16 parts (1p4n6u5w) 2830 | -7/Factory | Destroyed by G-47 Trooper with Particle Gun Last Messages --------------- 02767_ K-01 Serf collects debris. 02772_ Acquired Autogun. 02773_ K-01 Serf collects debris. 02773_ Acquired 10 matter. 02777_ K-01 Serf collects debris. 02782_ Acquired VTOL Module. 02783_ K-01 Serf cleans the Fusion Modulator. 02784_ Acquired 3 matter. 02785_ System corrupted: Matter fused (-10). 02787_ K-01 Serf collects debris. 02795_ Dropped VTOL Module. 02796_ K-01 Serf collects debris. 02799_ K-01 Serf cleans the Repair Station. 02803_ K-01 Serf collects debris. 02811_ Acquired VTOL Module. 02812_ K-01 Serf collects debris. 02815_ K-01 Serf cleans the Repair Station. 02820_ K-01 Serf collects debris. 02824_ VTOL Module destroyed. 02827_ G-47 Trooper destroyed. Map ----- +----------------------------------------------------+ | ?# """ # # #?????????????????? | | ?# # ! # #?????????????????? | | ???? ######## # #?????????????????? | | ??????? ] #??????# #! = #?????????????????? | | ??????? #??????# ##########?????????????????? | | ??????? #??????#% #??????????????????????????? | | ???????#####??????# #??????????????????????????? | | ??????????????????# #??????????????????????????? | | ??????????????????# #??????????????????????????? | | ??????????????????# #??????????????????????????? | | ????????????????### ###########????????????????? | | ????????????????# = #! ?????????????????? | | ????????????????# # """""?????????????????? | | ?????????????#### # """"""????????????????? | | ?????????? + T % +% """""" ???????????????? | | ?????????????#### # """""" #??????????????? | | ????????????????# # #??????????????? | | ????????????????# # """ """ #??????????????? | | ????????????????## ## """T""" #??????????????? | | ?????????????????# ###########???????????????? | | ?????????????????# = #?????????????????????????? | | ?????????????????# [%*#?????????????????????????? | | ?????????????????# ==[#?????????????????????????? | | ?????????????????# ###########???????????????? | | ?????????????????# # #???????????????? | | ?????????????????# # @ #???????????????? | | ?????????????????#" #! #???????????????? | | ?????????????????#%" #%"""g % #???????????????? | | ?????????????????+" /g"""%%"""#???????????????? | | ?????????????????# #k"""%% R"#???????????????? | | ?????????????????# # %"""#???????????????? | | ?????????????????# # %%%= #???????????????? | | ?????????????????# ###########???????????????? | | ?????????????????# #?????????????????????????? | | ?????????????????# #?????????????????????????? | | ?????????????????# +?????????????????????????? | | ?????????????????# #?????????????????????????? | | ?????????????????+ #?????????????????????????? | | ?????????????????# #?????????????????????????? | | ?????????????????# #?????????????????????????? | | ?????????????????# #?????????????????????????? | | ?????????????????# #?????????????????????????? | | ?????????????????+ #?????????????????????????? | | ?????????????????? ??????????????????????????? | | ?????????????????????????????????????????????????? | | ?????????????????????????????????????????????????? | | ?????????????????????????????????????????????????? | | ?????????????????????????????????????????????????? | | ?????????????????????????????????????????????????? | | ?????????????????????????????????????????????????? | +----------------------------------------------------+ Best States ------------- Heat Dissipation 48 Energy Generation 14 Energy Capacity 160 Matter Stores 300 Matter Capacity 300 Sight Range 16 Robot Scan Range 20 Terrain Scan Density 10 Armor Coverage 150 Core Shielding 20 Evasion (%) 55 Targeting Accuracy 5 Item Schematics ----------------- None Robot Schematics ------------------ None Fabricated ------------ Nothing Repaired ---------- Med. Laser | 61% | -9/Materials Studied --------- Beam Cannon | -8/Materials | Hacked Aluminum Leg | -8/Materials | Hacked Alien Tech Used ----------------- None Achievements -------------- Fist Fight Item+ Made in Tau Ceti IV Shopping List That Tickles Challenges ------------ None Game ------ Seed ChargeScrapoidCompanion Manual? 0 Play Time 00:58:24 Cumulative 4.3 hours Start 2026.01.02 @ 14:39:19 End 2026.01.02 @ 15:46:52 Sessions 1 Manual Loads 0 Difficulty Rogue Special Mode None Game No. 6 Rogue 6 Adventurer 0 Explorer 0 Win Type - Total 0 Types 0/0/0/0/0/0/0/0/0/0 Lore% 9 Gallery% 5 Achievement% 6 Wizard Run 0 Options --------- Layout 1 ASCII 0 Keyboard 0 Movement Arrows Keybinds 0 Fullscreen 2 Font 48/Terminus Map View 50x35 Zoom Use 0% Tactical HUD 1 Map Filters NONE Filters NONE Steam 1 RUN: 9c4e5dbe-6d6d-40c2-95c0-3425ee90d340